[Event "Argentine Superior Chess Championship 2023"]
[Site "https://www.chess.com"]
[Date "2023.11.03"]
[Round "7"]
[White "Tristan, Leonardo"]
[Black "Acosta, Pablo Ismael"]
[Result "1-0"]
[Board "2"]
[TimeControl "5400+30"]
[WhiteFideId "113816"]
[BlackFideId "124311"]
[WhiteElo "2523"]
[BlackElo "2482"]
[WhiteTeam "ARG"]
[BlackTeam "ARG"]
[WhiteClock "0:02:30"]
[BlackClock "0:16:14"]

1. d4 {[%clk 1:26:55]}  d5 {[%clk 1:30:51]} 2. Bg5 {[%clk 1:27:20]}  Nd7 {[%clk 1:26:32]} 3. c4 {[%clk 1:24:29]}  c6 {[%clk 1:26:51]} 4. cxd5 {[%clk 1:24:45]}  cxd5 {[%clk 1:27:15]} 5. Nc3 {[%clk 1:25:05]}  Ngf6 {[%clk 1:27:13]} 6. e3 {[%clk 1:25:28]}  e6 {[%clk 1:24:59]} 7. Bd3 {[%clk 1:25:33]}  Bd6 {[%clk 1:24:26]} 8. Nf3 {[%clk 1:20:26]}  h6 {[%clk 1:23:44]} 9. Bf4 {[%clk 1:13:52]}  Qc7 {[%clk 1:11:59]} 10. Qd2 {[%clk 1:11:47]}  Bxf4 {[%clk 1:10:41]} 11. exf4 {[%clk 1:12:10]}  a6 {[%clk 1:11:08]} 12. Rc1 {[%clk 1:09:09]}  Qd6 {[%clk 1:10:42]} 13. O-O {[%clk 1:06:01]}  O-O {[%clk 1:10:31]} 14. Ne5 {[%clk 0:55:21]}  b6 {[%clk 1:00:39]} 15. f3 {[%clk 0:48:19]}  Re8 {[%clk 0:57:50]} 16. g4 {[%clk 0:44:57]}  Nf8 {[%clk 0:57:21]} 17. g5 {[%clk 0:38:05]}  Nh5 {[%clk 0:55:04]} 18. gxh6 {[%clk 0:38:20]}  g6 {[%clk 0:51:55]} 19. Ne2 {[%clk 0:38:18]}  Bd7 {[%clk 0:51:35]} 20. Ng3 {[%clk 0:38:29]}  Nf6 {[%clk 0:51:39]} 21. h4 {[%clk 0:37:05]}  Rec8 {[%clk 0:49:25]} 22. h5 {[%clk 0:33:20]}  Bb5 {[%clk 0:45:05]} 23. hxg6 {[%clk 0:24:17]}  fxg6 {[%clk 0:44:21]} 24. Bxb5 {[%clk 0:20:41]}  axb5 {[%clk 0:43:21]} 25. Qd3 {[%clk 0:16:49]}  Qe7 {[%clk 0:39:31]} 26. Qxb5 {[%clk 0:15:12]}  Qh7 {[%clk 0:36:50]} 27. Qxb6 {[%clk 0:11:40]}  Rcb8 {[%clk 0:34:47]} 28. Qc7 {[%clk 0:10:57]}  Rxb2 {[%clk 0:27:02]} 29. Qxh7+ {[%clk 0:10:16]}  Kxh7 {[%clk 0:25:47]} 30. Rc7+ {[%clk 0:05:21]}  Kxh6 {[%clk 0:26:11]} 31. Rf2 {[%clk 0:02:28]}  Rxf2 {[%clk 0:25:17]} 32. Kxf2 {[%clk 0:02:54]}  Rxa2+ {[%clk 0:25:44]} 33. Kf1 {[%clk 0:02:04]}  Rd2 {[%clk 0:21:30]} 34. Ne2 {[%clk 0:01:57]}  Kh5 {[%clk 0:17:50]} 35. Rf7 {[%clk 0:02:20]}  N8h7 {[%clk 0:16:14]} 36. Nd7 {[%clk 0:02:30]} 1-0

[Event "Argentine Superior Chess Championship 2023"]
[Site "https://www.chess.com"]
[Date "2023.11.03"]
[Round "7"]
[White "Krysa, Leandro"]
[Black "Tokman, Ariel"]
[Result "1-0"]
[Board "3"]
[TimeControl "5400+30"]
[WhiteFideId "116807"]
[BlackFideId "117420"]
[WhiteElo "2546"]
[BlackElo "2306"]
[WhiteTeam "ARG"]
[BlackTeam "ARG"]
[WhiteClock "0:13:55"]
[BlackClock "0:07:40"]

1. d4 {[%clk 1:30:54]}  d5 {[%clk 1:30:32]} 2. c4 {[%clk 1:30:59]}  e6 {[%clk 1:30:58]} 3. Nf3 {[%clk 1:30:29]}  Nf6 {[%clk 1:31:21]} 4. Nc3 {[%clk 1:30:48]}  Bb4 {[%clk 1:31:36]} 5. cxd5 {[%clk 1:30:44]}  exd5 {[%clk 1:31:58]} 6. Bg5 {[%clk 1:31:04]}  Qd6 {[%clk 1:32:02]} 7. Nd2 {[%clk 1:30:19]}  c6 {[%clk 1:26:06]} 8. e3 {[%clk 1:21:39]}  Nbd7 {[%clk 1:25:46]} 9. Bd3 {[%clk 1:15:58]}  O-O {[%clk 1:25:28]} 10. O-O {[%clk 1:13:42]}  h6 {[%clk 1:04:49]} 11. Bh4 {[%clk 1:11:40]}  Nb6 {[%clk 0:56:51]} 12. a3 {[%clk 1:10:36]}  Bxc3 {[%clk 0:57:11]} 13. bxc3 {[%clk 1:11:01]}  Re8 {[%clk 0:57:02]} 14. a4 {[%clk 1:00:17]}  Ne4 {[%clk 0:54:46]} 15. Bxe4 {[%clk 0:57:12]}  dxe4 {[%clk 0:54:52]} 16. a5 {[%clk 0:56:38]}  Nd5 {[%clk 0:52:38]} 17. c4 {[%clk 0:52:16]}  Nb4 {[%clk 0:39:00]} 18. Qb1 {[%clk 0:47:43]}  Nd3 {[%clk 0:38:14]} 19. Nxe4 {[%clk 0:45:06]}  Rxe4 {[%clk 0:37:10]} 20. Bg3 {[%clk 0:45:27]}  Qe7 {[%clk 0:24:45]} 21. Qxd3 {[%clk 0:45:30]}  h5 {[%clk 0:24:05]} 22. h3 {[%clk 0:37:07]}  Re6 {[%clk 0:19:12]} 23. d5 {[%clk 0:31:15]}  Rg6 {[%clk 0:18:52]} 24. h4 {[%clk 0:28:22]}  Qc5 {[%clk 0:14:10]} 25. Kh2 {[%clk 0:24:01]}  b5 {[%clk 0:11:39]} 26. cxb5 {[%clk 0:18:42]}  Qxb5 {[%clk 0:09:32]} 27. Qxb5 {[%clk 0:18:19]}  cxb5 {[%clk 0:10:00]} 28. e4 {[%clk 0:18:01]}  Bd7 {[%clk 0:07:34]} 29. Rfc1 {[%clk 0:16:35]}  Ra6 {[%clk 0:07:43]} 30. Rc7 {[%clk 0:14:47]}  Rd8 {[%clk 0:08:03]} 31. f3 {[%clk 0:14:13]}  f6 {[%clk 0:07:40]} 32. Bf2 {[%clk 0:13:55]} 1-0

[Event "Argentine Superior Chess Championship 2023"]
[Site "https://www.chess.com"]
[Date "2023.11.03"]
[Round "7"]
[White "Valerga, Diego"]
[Black "Silva, Luca"]
[Result "1/2-1/2"]
[Board "4"]
[TimeControl "5400+30"]
[WhiteFideId "100587"]
[BlackFideId "147370"]
[WhiteElo "2428"]
[BlackElo "2287"]
[WhiteTeam "ARG"]
[BlackTeam "ARG"]
[WhiteClock "0:36:54"]
[BlackClock "0:27:55"]

1. d4 {[%clk 1:30:54]}  d5 {[%clk 1:30:47]} 2. c4 {[%clk 1:31:15]}  c6 {[%clk 1:31:12]} 3. Nf3 {[%clk 1:31:28]}  Nf6 {[%clk 1:31:36]} 4. Nc3 {[%clk 1:31:38]}  e6 {[%clk 1:31:59]} 5. Bg5 {[%clk 1:31:33]}  dxc4 {[%clk 1:32:10]} 6. a4 {[%clk 1:31:52]}  Bb4 {[%clk 1:32:15]} 7. e4 {[%clk 1:31:47]}  Bxc3+ {[%clk 1:32:16]} 8. bxc3 {[%clk 1:32:09]}  Qa5 {[%clk 1:32:35]} 9. e5 {[%clk 1:30:35]}  Ne4 {[%clk 1:32:21]} 10. Bd2 {[%clk 1:26:47]}  c5 {[%clk 1:31:06]} 11. Bxc4 {[%clk 1:25:58]}  cxd4 {[%clk 1:30:27]} 12. cxd4 {[%clk 1:23:49]}  Nxd2 {[%clk 1:30:43]} 13. Qxd2 {[%clk 1:24:10]}  Nc6 {[%clk 1:30:33]} 14. d5 {[%clk 1:07:52]}  Qxd2+ {[%clk 1:30:22]} 15. Kxd2 {[%clk 1:08:13]}  exd5 {[%clk 1:30:49]} 16. Bxd5 {[%clk 1:06:56]}  Be6 {[%clk 1:29:52]} 17. Be4 {[%clk 0:56:50]}  Ke7 {[%clk 1:14:17]} 18. Rab1 {[%clk 0:48:14]}  Rad8+ {[%clk 1:09:14]} 19. Ke3 {[%clk 0:47:41]}  Rd7 {[%clk 1:09:41]} 20. Bxc6 {[%clk 0:28:34]}  bxc6 {[%clk 1:10:07]} 21. Nd4 {[%clk 0:28:57]}  Rc8 {[%clk 0:57:42]} 22. f4 {[%clk 0:26:19]}  c5 {[%clk 0:29:19]} 23. Nb5 {[%clk 0:14:15]}  c4 {[%clk 0:29:35]} 24. Nd6 {[%clk 0:14:37]}  Rc5 {[%clk 0:29:55]} 25. Rb5 {[%clk 0:14:34]}  Rdc7 {[%clk 0:23:14]} 26. Rc1 {[%clk 0:09:25]}  f6 {[%clk 0:15:51]} 27. Kd4 {[%clk 0:07:31]}  R5c6 {[%clk 0:14:47]} 28. Rc3 {[%clk 0:07:31]}  a6 {[%clk 0:11:28]} 29. Rb7 {[%clk 0:07:09]}  Rxb7 {[%clk 0:09:34]} 30. Nxb7 {[%clk 0:07:32]}  Rb6 {[%clk 0:09:36]} 31. exf6+ {[%clk 0:05:45]}  Kxf6 {[%clk 0:09:27]} 32. Nc5 {[%clk 0:06:06]}  Rd6+ {[%clk 0:07:00]} 33. Ke3 {[%clk 0:06:01]}  Bd5 {[%clk 0:03:21]} 34. Ne4+ {[%clk 0:05:33]}  Bxe4 {[%clk 0:03:48]} 35. Kxe4 {[%clk 0:05:58]}  Re6+ {[%clk 0:02:04]} 36. Kf3 {[%clk 0:03:53]}  Rc6 {[%clk 0:02:31]} 37. g4 {[%clk 0:04:18]}  h5 {[%clk 0:01:02]} 38. h3 {[%clk 0:04:37]}  hxg4+ {[%clk 0:01:23]} 39. hxg4 {[%clk 0:05:03]}  g5 {[%clk 0:01:35]} 40. Ke4 {[%clk 0:34:43]}  gxf4 {[%clk 0:30:32]} 41. Kxf4 {[%clk 0:35:02]}  Rc8 {[%clk 0:27:28]} 42. Ke4 {[%clk 0:34:24]}  Kg5 {[%clk 0:26:27]} 43. Kd5 {[%clk 0:34:34]}  Kxg4 {[%clk 0:26:28]} 44. Rxc4+ {[%clk 0:34:58]}  Rxc4 {[%clk 0:26:55]} 45. Kxc4 {[%clk 0:35:21]}  Kf5 {[%clk 0:27:13]} 46. Kb4 {[%clk 0:35:41]}  Ke6 {[%clk 0:27:35]} 47. Ka5 {[%clk 0:36:06]}  Kd7 {[%clk 0:27:59]} 48. Kxa6 {[%clk 0:36:30]}  Kc8 {[%clk 0:27:55]} 49. Kb5 {[%clk 0:36:54]} 1/2-1/2

[Event "Argentine Superior Chess Championship 2023"]
[Site "https://www.chess.com"]
[Date "2023.11.03"]
[Round "7"]
[White "Miranda, Rafael"]
[Black "Perez Ponsa, Federico"]
[Result "0-1"]
[Board "5"]
[TimeControl "5400+30"]
[WhiteFideId "130990"]
[BlackFideId "117927"]
[WhiteElo "2343"]
[BlackElo "2527"]
[WhiteTeam "ARG"]
[BlackTeam "ARG"]
[WhiteClock "0:19:06"]
[BlackClock "0:25:20"]

1. e4 {[%clk 1:30:50]}  c5 {[%clk 1:25:09]} 2. Nf3 {[%clk 1:30:21]}  d6 {[%clk 1:25:17]} 3. d4 {[%clk 1:30:43]}  cxd4 {[%clk 1:25:41]} 4. Nxd4 {[%clk 1:31:01]}  Nf6 {[%clk 1:26:04]} 5. Nc3 {[%clk 1:31:25]}  a6 {[%clk 1:26:30]} 6. Be3 {[%clk 1:31:38]}  Ng4 {[%clk 1:26:38]} 7. Bc1 {[%clk 1:31:24]}  Nc6 {[%clk 1:26:52]} 8. h3 {[%clk 1:26:43]}  Nf6 {[%clk 1:26:56]} 9. g4 {[%clk 1:25:33]}  g6 {[%clk 1:27:12]} 10. Be3 {[%clk 1:25:23]}  Nxd4 {[%clk 1:27:15]} 11. Bxd4 {[%clk 1:22:56]}  Bh6 {[%clk 1:27:35]} 12. Nd5 {[%clk 1:13:18]}  O-O {[%clk 1:27:49]} 13. Nxf6+ {[%clk 1:04:38]}  exf6 {[%clk 1:28:13]} 14. Qf3 {[%clk 1:02:41]}  f5 {[%clk 1:13:15]} 15. gxf5 {[%clk 0:55:33]}  d5 {[%clk 1:12:47]} 16. e5 {[%clk 0:42:40]}  Bxf5 {[%clk 1:10:06]} 17. Bd3 {[%clk 0:42:53]}  Qh4 {[%clk 1:06:28]} 18. c3 {[%clk 0:40:50]}  Bxd3 {[%clk 0:57:03]} 19. Qxd3 {[%clk 0:41:18]}  Bf4 {[%clk 0:55:21]} 20. Kf1 {[%clk 0:40:54]}  Rfe8 {[%clk 0:52:19]} 21. Re1 {[%clk 0:40:16]}  Qh5 {[%clk 0:52:15]} 22. Qe2 {[%clk 0:39:37]}  Qxe2+ {[%clk 0:51:57]} 23. Rxe2 {[%clk 0:39:13]}  Re6 {[%clk 0:52:19]} 24. Re1 {[%clk 0:35:54]}  Rae8 {[%clk 0:51:10]} 25. Rd1 {[%clk 0:36:16]}  Bxe5 {[%clk 0:49:34]} 26. Bxe5 {[%clk 0:36:01]}  Rxe5 {[%clk 0:49:12]} 27. Rd2 {[%clk 0:36:04]}  Re1+ {[%clk 0:43:28]} 28. Kg2 {[%clk 0:36:27]}  R8e2 {[%clk 0:43:49]} 29. b4 {[%clk 0:26:54]}  Rxd2 {[%clk 0:28:30]} 30. Rxe1 {[%clk 0:27:09]}  Kf8 {[%clk 0:25:28]} 31. a4 {[%clk 0:23:41]}  Rd3 {[%clk 0:24:19]} 32. Re5 {[%clk 0:20:44]}  Rxc3 {[%clk 0:24:00]} 33. Rxd5 {[%clk 0:20:59]}  Rc4 {[%clk 0:24:22]} 34. b5 {[%clk 0:19:32]}  Rxa4 {[%clk 0:24:36]} 35. Rd8+ {[%clk 0:19:33]}  Kg7 {[%clk 0:24:50]} 36. Rb8 {[%clk 0:19:56]}  axb5 {[%clk 0:25:06]} 37. Rxb7 {[%clk 0:20:23]}  Rb4 {[%clk 0:25:30]} 38. Kg3 {[%clk 0:19:06]}  g5 {[%clk 0:25:20]} 0-1

[Event "Argentine Superior Chess Championship 2023"]
[Site "https://www.chess.com"]
[Date "2023.11.03"]
[Round "7"]
[White "Francisco Guecamburu, Candela Be"]
[Black "Gomez, Carlos David"]
[Result "0-1"]
[Board "6"]
[TimeControl "5400+30"]
[WhiteFideId "160911"]
[BlackFideId "114669"]
[WhiteElo "2345"]
[BlackElo "2331"]
[WhiteTeam "ARG"]
[BlackTeam "ARG"]
[WhiteClock "0:03:40"]
[BlackClock "0:08:20"]

1. e4 {[%clk 1:30:56]}  e6 {[%clk 1:29:35]} 2. d4 {[%clk 1:31:11]}  d5 {[%clk 1:29:45]} 3. Nc3 {[%clk 1:31:31]}  Bb4 {[%clk 1:30:02]} 4. e5 {[%clk 1:31:07]}  Ne7 {[%clk 1:30:23]} 5. a3 {[%clk 1:19:18]}  Bxc3+ {[%clk 1:30:00]} 6. bxc3 {[%clk 1:19:39]}  c5 {[%clk 1:30:22]} 7. Qg4 {[%clk 1:19:51]}  Nf5 {[%clk 1:29:21]} 8. Bd3 {[%clk 1:18:49]}  h5 {[%clk 1:29:43]} 9. Qf4 {[%clk 1:18:46]}  Qc7 {[%clk 1:29:08]} 10. Bxf5 {[%clk 1:10:27]}  exf5 {[%clk 1:29:17]} 11. Qg5 {[%clk 1:10:38]}  g6 {[%clk 1:26:17]} 12. Ne2 {[%clk 1:06:47]}  cxd4 {[%clk 1:08:42]} 13. cxd4 {[%clk 1:01:49]}  Be6 {[%clk 1:07:44]} 14. a4 {[%clk 0:51:09]}  Nc6 {[%clk 1:05:19]} 15. O-O {[%clk 0:47:39]}  Qe7 {[%clk 1:01:10]} 16. Qe3 {[%clk 0:38:36]}  Na5 {[%clk 1:00:46]} 17. Ba3 {[%clk 0:37:20]}  Nc4 {[%clk 0:59:02]} 18. Bxe7 {[%clk 0:31:51]}  Nxe3 {[%clk 0:59:24]} 19. fxe3 {[%clk 0:32:07]}  Kxe7 {[%clk 0:59:48]} 20. Rfb1 {[%clk 0:32:18]}  Rab8 {[%clk 0:57:42]} 21. Rb2 {[%clk 0:28:05]}  h4 {[%clk 0:47:33]} 22. Nc3 {[%clk 0:22:03]}  b6 {[%clk 0:44:15]} 23. Nb5 {[%clk 0:19:45]}  Rb7 {[%clk 0:43:38]} 24. Nd6 {[%clk 0:20:00]}  Rc7 {[%clk 0:43:56]} 25. a5 {[%clk 0:17:19]}  Rb8 {[%clk 0:43:27]} 26. axb6 {[%clk 0:11:11]}  axb6 {[%clk 0:43:43]} 27. Nb5 {[%clk 0:10:54]}  Rc6 {[%clk 0:31:22]} 28. Ra7+ {[%clk 0:09:03]}  Kf8 {[%clk 0:31:38]} 29. Kf2 {[%clk 0:08:01]}  g5 {[%clk 0:28:41]} 30. Kf3 {[%clk 0:06:32]}  Kg7 {[%clk 0:28:33]} 31. h3 {[%clk 0:04:35]}  Rbc8 {[%clk 0:11:29]} 32. Raa2 {[%clk 0:04:59]}  Rg8 {[%clk 0:11:55]} 33. Na7 {[%clk 0:04:18]}  Rc3 {[%clk 0:12:19]} 34. Nb5 {[%clk 0:04:39]}  Rc4 {[%clk 0:11:16]} 35. Nd6 {[%clk 0:04:45]}  Rc6 {[%clk 0:11:40]} 36. Ra6 {[%clk 0:05:01]}  Rb8 {[%clk 0:12:00]} 37. Nb5 {[%clk 0:04:20]}  Kh6 {[%clk 0:11:44]} 38. Ra7 {[%clk 0:03:21]}  Rbc8 {[%clk 0:11:44]} 39. c3 {[%clk 0:02:13]}  g4+ {[%clk 0:07:50]} 40. Kf2 {[%clk 0:32:01]}  Kg5 {[%clk 0:36:43]} 41. Rb7 {[%clk 0:19:39]}  Ra8 {[%clk 0:33:14]} 42. Nc7 {[%clk 0:18:58]}  g3+ {[%clk 0:22:45]} 43. Ke2 {[%clk 0:17:30]}  Bc8 {[%clk 0:19:40]} 44. Nxa8 {[%clk 0:16:08]}  Bxb7 {[%clk 0:20:04]} 45. Nxb6 {[%clk 0:16:32]}  Rxc3 {[%clk 0:20:27]} 46. Kd2 {[%clk 0:14:07]}  Ra3 {[%clk 0:12:19]} 47. Nc4 {[%clk 0:09:25]}  dxc4 {[%clk 0:12:40]} 48. Rxb7 {[%clk 0:09:50]}  Kg6 {[%clk 0:13:02]} 49. Rb6+ {[%clk 0:09:56]}  Kg7 {[%clk 0:13:19]} 50. Rb7 {[%clk 0:10:03]}  Ra2+ {[%clk 0:10:41]} 51. Kc3 {[%clk 0:09:36]}  Rxg2 {[%clk 0:10:03]} 52. e6 {[%clk 0:09:57]}  Re2 {[%clk 0:10:20]} 53. Rxf7+ {[%clk 0:09:53]}  Kg6 {[%clk 0:10:29]} 54. Rf8 {[%clk 0:03:57]}  Rxe3+ {[%clk 0:10:18]} 55. Kxc4 {[%clk 0:04:21]}  Rxe6 {[%clk 0:10:30]} 56. d5 {[%clk 0:03:41]}  Rf6 {[%clk 0:09:40]} 57. Rb8 {[%clk 0:03:14]}  f4 {[%clk 0:07:41]} 58. Kc5 {[%clk 0:03:38]}  f3 {[%clk 0:08:01]} 59. d6 {[%clk 0:04:02]}  Rf7 {[%clk 0:08:12]} 60. Rg8+ {[%clk 0:03:01]}  Kf5 {[%clk 0:07:45]} 61. Kc6 {[%clk 0:03:14]}  f2 {[%clk 0:07:48]} 62. d7 {[%clk 0:03:39]}  Rxd7 {[%clk 0:07:59]} 63. Kxd7 {[%clk 0:03:40]}  Ke4 {[%clk 0:08:20]} 0-1

[Event "Argentine Superior Chess Championship 2023"]
[Site "https://www.chess.com"]
[Date "2023.11.04"]
[Round "8"]
[White "Tristan, Leonardo"]
[Black "Peralta, Fernando"]
[Result "1-0"]
[Board "1"]
[TimeControl "5400+30"]
[WhiteFideId "113816"]
[BlackFideId "105309"]
[WhiteElo "2523"]
[BlackElo "2580"]
[WhiteTeam "ARG"]
[BlackTeam "ARG"]
[WhiteClock "0:53:03"]
[BlackClock "0:02:49"]

1. d4 {[%clk 1:30:55]}  Nf6 {[%clk 1:30:51]} 2. Nf3 {[%clk 1:31:15]}  e6 {[%clk 1:30:43]} 3. Bf4 {[%clk 1:31:38]}  d5 {[%clk 1:30:30]} 4. e3 {[%clk 1:30:59]}  c5 {[%clk 1:30:55]} 5. c3 {[%clk 1:31:15]}  Nc6 {[%clk 1:31:15]} 6. Nbd2 {[%clk 1:31:35]}  Nh5 {[%clk 1:31:19]} 7. Bg5 {[%clk 1:31:58]}  f6 {[%clk 1:31:42]} 8. Ne5 {[%clk 1:32:24]}  g6 {[%clk 1:27:57]} 9. g4 {[%clk 1:32:50]}  Ng7 {[%clk 1:22:31]} 10. Nxc6 {[%clk 1:33:10]}  bxc6 {[%clk 1:22:53]} 11. Bh6 {[%clk 1:33:38]}  Qb6 {[%clk 0:57:43]} 12. Qc2 {[%clk 1:30:22]}  e5 {[%clk 0:56:02]} 13. dxe5 {[%clk 1:24:42]}  fxe5 {[%clk 0:56:02]} 14. Bd3 {[%clk 1:24:47]}  e4 {[%clk 0:33:18]} 15. Nxe4 {[%clk 1:23:45]}  dxe4 {[%clk 0:33:23]} 16. Bc4 {[%clk 1:24:11]}  Ne6 {[%clk 0:21:46]} 17. Qxe4 {[%clk 1:13:41]}  Kf7 {[%clk 0:07:49]} 18. Qf4+ {[%clk 1:11:45]}  Ke8 {[%clk 0:08:13]} 19. Qe5 {[%clk 1:02:45]}  Kf7 {[%clk 0:06:42]} 20. Bxe6+ {[%clk 0:55:05]}  Bxe6 {[%clk 0:07:02]} 21. Qxh8 {[%clk 0:55:31]}  Bxh6 {[%clk 0:06:21]} 22. Qxa8 {[%clk 0:55:02]}  Qa6 {[%clk 0:03:01]} 23. O-O-O {[%clk 0:52:39]}  Qxa2 {[%clk 0:02:30]} 24. Qb7+ {[%clk 0:53:06]}  Kg8 {[%clk 0:01:59]} 25. Rd8+ {[%clk 0:52:02]}  Bf8 {[%clk 0:02:24]} 26. Qe7 {[%clk 0:52:12]}  Qa1+ {[%clk 0:02:30]} 27. Kc2 {[%clk 0:52:39]}  Qa4+ {[%clk 0:02:49]} 28. Kd2 {[%clk 0:53:03]} 1-0

[Event "Argentine Superior Chess Championship 2023"]
[Site "https://www.chess.com"]
[Date "2023.11.04"]
[Round "8"]
[White "Perez Ponsa, Federico"]
[Black "Francisco Guecamburu, Candela Be"]
[Result "1-0"]
[Board "2"]
[TimeControl "5400+30"]
[WhiteFideId "117927"]
[BlackFideId "160911"]
[WhiteElo "2527"]
[BlackElo "2345"]
[WhiteTeam "ARG"]
[BlackTeam "ARG"]
[WhiteClock "0:27:30"]
[BlackClock "0:20:28"]

1. d4 {[%clk 1:25:35]}  Nf6 {[%clk 1:30:51]} 2. c4 {[%clk 1:25:59]}  e6 {[%clk 1:31:16]} 3. Nf3 {[%clk 1:26:24]}  b6 {[%clk 1:31:40]} 4. g3 {[%clk 1:26:30]}  Ba6 {[%clk 1:32:03]} 5. Qa4 {[%clk 1:22:29]}  Bb7 {[%clk 1:32:18]} 6. Bg2 {[%clk 1:22:40]}  c5 {[%clk 1:32:34]} 7. dxc5 {[%clk 1:21:51]}  bxc5 {[%clk 1:27:00]} 8. O-O {[%clk 1:19:38]}  Be7 {[%clk 1:26:06]} 9. Nc3 {[%clk 1:16:53]}  O-O {[%clk 1:21:50]} 10. Rd1 {[%clk 1:13:02]}  Qb6 {[%clk 1:13:15]} 11. Bf4 {[%clk 1:05:27]}  Rd8 {[%clk 1:03:31]} 12. Rd2 {[%clk 0:56:05]}  d6 {[%clk 0:46:12]} 13. Rad1 {[%clk 0:49:48]}  h6 {[%clk 0:43:25]} 14. Qb5 {[%clk 0:42:33]}  Ne8 {[%clk 0:32:14]} 15. Qxb6 {[%clk 0:30:59]}  axb6 {[%clk 0:32:42]} 16. b3 {[%clk 0:30:59]}  g5 {[%clk 0:27:54]} 17. Be3 {[%clk 0:30:35]}  Nc7 {[%clk 0:26:47]} 18. h4 {[%clk 0:28:59]}  f6 {[%clk 0:24:41]} 19. hxg5 {[%clk 0:23:40]}  hxg5 {[%clk 0:23:50]} 20. Ne1 {[%clk 0:22:01]}  Bxg2 {[%clk 0:20:31]} 21. Nxg2 {[%clk 0:20:08]}  Kf7 {[%clk 0:16:45]} 22. f4 {[%clk 0:18:28]}  Kg6 {[%clk 0:16:11]} 23. Bf2 {[%clk 0:16:59]}  d5 {[%clk 0:13:46]} 24. f5+ {[%clk 0:12:41]}  exf5 {[%clk 0:09:03]} 25. cxd5 {[%clk 0:12:39]}  Bd6 {[%clk 0:09:13]} 26. e4 {[%clk 0:11:13]}  fxe4 {[%clk 0:07:50]} 27. Nxe4 {[%clk 0:11:22]}  Nba6 {[%clk 0:07:34]} 28. Ne3 {[%clk 0:09:36]}  f5 {[%clk 0:03:56]} 29. Nxd6 {[%clk 0:08:16]}  Rxd6 {[%clk 0:04:25]} 30. Nc4 {[%clk 0:08:36]}  Rad8 {[%clk 0:04:51]} 31. Nxd6 {[%clk 0:07:33]}  Rxd6 {[%clk 0:05:19]} 32. a3 {[%clk 0:07:12]}  Nb5 {[%clk 0:05:41]} 33. Re1 {[%clk 0:06:00]}  Nac7 {[%clk 0:05:53]} 34. b4 {[%clk 0:04:58]}  cxb4 {[%clk 0:04:04]} 35. axb4 {[%clk 0:05:20]}  Nxd5 {[%clk 0:02:47]} 36. Bxb6 {[%clk 0:03:52]}  Rxb6 {[%clk 0:01:17]} 37. Rxd5 {[%clk 0:04:17]}  Na3 {[%clk 0:01:01]} 38. Rf1 {[%clk 0:00:38]}  Rxb4 {[%clk 0:01:06]} 39. Rfxf5 {[%clk 0:00:34]}  g4 {[%clk 0:00:39]} 40. Rg5+ {[%clk 0:30:35]}  Kh6 {[%clk 0:30:35]} 41. Rge5 {[%clk 0:28:18]}  Kg6 {[%clk 0:23:05]} 42. Re6+ {[%clk 0:26:26]}  Kf7 {[%clk 0:23:19]} 43. Ra6 {[%clk 0:26:21]}  Rb1+ {[%clk 0:19:50]} 44. Kf2 {[%clk 0:26:43]}  Rb2+ {[%clk 0:20:13]} 45. Kf1 {[%clk 0:26:55]}  Rb1+ {[%clk 0:20:03]} 46. Ke2 {[%clk 0:27:20]}  Rb2+ {[%clk 0:20:28]} 47. Rd2 {[%clk 0:27:30]} 1-0

[Event "Argentine Superior Chess Championship 2023"]
[Site "https://www.chess.com"]
[Date "2023.11.04"]
[Round "8"]
[White "Villca, Julian"]
[Black "Valerga, Diego"]
[Result "1/2-1/2"]
[Board "3"]
[TimeControl "5400+30"]
[WhiteFideId "134902"]
[BlackFideId "100587"]
[WhiteElo "2383"]
[BlackElo "2428"]
[WhiteTeam "ARG"]
[BlackTeam "ARG"]
[WhiteClock "0:48:31"]
[BlackClock "0:33:36"]

1. c4 {[%clk 1:20:33]}  e6 {[%clk 1:30:43]} 2. Nf3 {[%clk 1:20:58]}  Nf6 {[%clk 1:30:55]} 3. b3 {[%clk 1:21:24]}  d5 {[%clk 1:29:50]} 4. Bb2 {[%clk 1:21:51]}  c5 {[%clk 1:28:03]} 5. e3 {[%clk 1:22:16]}  Nc6 {[%clk 1:28:20]} 6. cxd5 {[%clk 1:22:38]}  exd5 {[%clk 1:28:41]} 7. Be2 {[%clk 1:23:05]}  Bd6 {[%clk 1:28:07]} 8. O-O {[%clk 1:23:27]}  O-O {[%clk 1:28:27]} 9. d4 {[%clk 1:23:55]}  cxd4 {[%clk 1:28:33]} 10. Nxd4 {[%clk 1:24:19]}  Re8 {[%clk 1:24:56]} 11. Nd2 {[%clk 1:24:25]}  a6 {[%clk 1:20:59]} 12. N2f3 {[%clk 1:23:46]}  Bd7 {[%clk 1:21:08]} 13. Rc1 {[%clk 1:17:10]}  Qe7 {[%clk 1:18:49]} 14. h3 {[%clk 1:12:59]}  Ne4 {[%clk 1:12:03]} 15. Bd3 {[%clk 1:07:59]}  Ne5 {[%clk 1:07:13]} 16. Bb1 {[%clk 1:04:19]}  Rad8 {[%clk 1:05:55]} 17. Nd2 {[%clk 1:03:07]}  Bxh3 {[%clk 0:54:57]} 18. gxh3 {[%clk 0:47:33]}  Qg5+ {[%clk 0:53:28]} 19. Kh1 {[%clk 0:47:59]}  Qh4 {[%clk 0:52:35]} 20. Kg2 {[%clk 0:48:22]}  Qg5+ {[%clk 0:40:07]} 21. Kh1 {[%clk 0:48:22]}  Qh6 {[%clk 0:40:31]} 22. Kg2 {[%clk 0:48:05]}  Qg5+ {[%clk 0:33:03]} 23. Kh1 {[%clk 0:48:06]}  Qh4 {[%clk 0:33:10]} 24. Kg2 {[%clk 0:48:31]}  Qg5+ {[%clk 0:33:36]} 1/2-1/2